[Event "Early-Titled-Tuesday-Blitz-March-19-2024"]
[Site "Chess.com"]
[Date "2024.03.19"]
[Round "4"]
[White "sorch29"]
[Black "willcab71"]
[Result "1-0"]
[WhiteElo "2494"]
[BlackElo "2122"]
[TimeControl "180+1"]
[EndTime "8:42:07 PDT"]
[Termination "sorch29 won by resignation"]

1. c4 {[%clk 0:03:00.9]} 1... Nf6 {[%clk 0:02:58.7]} 2. Nc3 {[%clk 0:03:00.6]}
2... g6 {[%clk 0:02:58.9]} 3. e4 {[%clk 0:03:00.7]} 3... d6 {[%clk 0:02:58.6]}
4. d4 {[%clk 0:03:01]} 4... Bg7 {[%clk 0:02:59.1]} 5. Be2 {[%clk 0:03:01.7]}
5... O-O {[%clk 0:02:56.1]} 6. Be3 {[%clk 0:03:02]} 6... c5 {[%clk 0:02:33.7]}
7. e5 {[%clk 0:02:59.6]} 7... Ne8 {[%clk 0:01:42.3]} 8. dxc5 {[%clk 0:02:42.4]}
8... Bxe5 {[%clk 0:01:40.7]} 9. Nf3 {[%clk 0:02:36.2]} 9... Bg7 {[%clk 0:01:38]}
10. O-O {[%clk 0:02:33.3]} 10... Nc6 {[%clk 0:01:37.3]} 11. cxd6 {[%clk
0:02:18.8]} 11... Nxd6 {[%clk 0:01:37.2]} 12. Rc1 {[%clk 0:02:12]} 12... Qa5
{[%clk 0:01:30.8]} 13. Bd2 {[%clk 0:00:56]} 13... Qd8 {[%clk 0:01:19.5]} 14. a3
{[%clk 0:00:51.6]} 14... Nf5 {[%clk 0:01:18.9]} 15. b4 {[%clk 0:00:49.3]} 15...
Ncd4 {[%clk 0:00:57]} 16. Nxd4 {[%clk 0:00:42.4]} 16... Nxd4 {[%clk 0:00:56.7]}
17. Be3 {[%clk 0:00:35.3]} 17... Nxe2+ {[%clk 0:00:54.8]} 18. Qxe2 {[%clk
0:00:35.4]} 18... Be6 {[%clk 0:00:47.1]} 19. Rfd1 {[%clk 0:00:35.4]} 19... Qc8
{[%clk 0:00:26.5]} 20. Nb5 {[%clk 0:00:21.4]} 20... a6 {[%clk 0:00:19.7]} 21.
Nd4 {[%clk 0:00:21.2]} 21... Bd7 {[%clk 0:00:19.9]} 22. c5 {[%clk 0:00:19.7]}
22... e5 {[%clk 0:00:19.4]} 23. Nb3 {[%clk 0:00:12]} 23... e4 {[%clk 0:00:19]}
24. Bd4 {[%clk 0:00:08.8]} 24... Bg4 {[%clk 0:00:19.4]} 25. f3 {[%clk
0:00:08.3]} 25... exf3 {[%clk 0:00:19.6]} 26. gxf3 {[%clk 0:00:08.9]} 26... Re8
{[%clk 0:00:16.9]} 27. Qf2 {[%clk 0:00:08.5]} 27... Bh3 {[%clk 0:00:13.6]} 28.
Bxg7 {[%clk 0:00:07.9]} 28... Kxg7 {[%clk 0:00:13.8]} 29. Nd4 {[%clk 0:00:05.7]}
29... Qc7 {[%clk 0:00:10.8]} 30. Qg3 {[%clk 0:00:03.6]} 30... Qc8 {[%clk
0:00:10.2]} 31. Kf2 {[%clk 0:00:03.1]} 31... Bd7 {[%clk 0:00:09.3]} 32. Re1
{[%clk 0:00:03.4]} 32... Rxe1 {[%clk 0:00:07.2]} 33. Rxe1 {[%clk 0:00:04.3]}
33... Bc6 {[%clk 0:00:06.5]} 34. Qe5+ {[%clk 0:00:04.5]} 34... Kg8 {[%clk
0:00:06.4]} 35. Kg2 {[%clk 0:00:04.4]} 35... Qf8 {[%clk 0:00:06.8]} 36. Qe7
{[%clk 0:00:03.9]} 36... Qg7 {[%clk 0:00:06.5]} 37. Qe5 {[%clk 0:00:04.6]} 37...
Qf8 {[%clk 0:00:06.5]} 38. Qd6 {[%clk 0:00:05.4]} 38... Qc8 {[%clk 0:00:06.1]}
39. Qe5 {[%clk 0:00:05.4]} 39... Qd8 {[%clk 0:00:05.8]} 40. Nxc6 {[%clk
0:00:05.4]} 40... bxc6 {[%clk 0:00:05.3]} 41. Re2 {[%clk 0:00:05.4]} 41... Qd3
{[%clk 0:00:04.9]} 42. Qe3 {[%clk 0:00:05.7]} 42... Qd5 {[%clk 0:00:04.6]} 43.
Qe4 {[%clk 0:00:06]} 43... Qd7 {[%clk 0:00:05]} 44. Re3 {[%clk 0:00:06.5]} 44...
Rd8 {[%clk 0:00:05.4]} 45. Re2 {[%clk 0:00:07.1]} 45... Qd5 {[%clk 0:00:05.1]}
46. Qe3 {[%clk 0:00:07.7]} 46... Qd7 {[%clk 0:00:05]} 47. Qe4 {[%clk 0:00:08.2]}
47... Qd5 {[%clk 0:00:05.4]} 48. Qxd5 {[%clk 0:00:08.7]} 48... Rxd5 {[%clk
0:00:05.8]} 49. Re3 {[%clk 0:00:09.2]} 49... Rd2+ {[%clk 0:00:05.7]} 50. Kg3
{[%clk 0:00:09.8]} 50... Ra2 {[%clk 0:00:06.2]} 51. h4 {[%clk 0:00:09.7]} 51...
Kg7 {[%clk 0:00:06.7]} 52. Kf4 {[%clk 0:00:10.3]} 52... Kf6 {[%clk 0:00:07.1]}
53. Ke4 {[%clk 0:00:11]} 53... h6 {[%clk 0:00:06.8]} 54. Rd3 {[%clk 0:00:11.1]}
54... Ke7 {[%clk 0:00:05.9]} 55. Kf4 {[%clk 0:00:10.8]} 55... Rb2 {[%clk
0:00:05.5]} 56. Kg4 {[%clk 0:00:10.9]} 56... Ra2 {[%clk 0:00:05.3]} 57. Kg3
{[%clk 0:00:11.4]} 57... Rb2 {[%clk 0:00:05.4]} 58. Re3+ {[%clk 0:00:11.5]}
58... Kf6 {[%clk 0:00:05.4]} 59. Rd3 {[%clk 0:00:12.2]} 59... Ke7 {[%clk
0:00:05.9]} 60. Kf4 {[%clk 0:00:08.2]} 60... Kf6 {[%clk 0:00:05.6]} 61. Ke3
{[%clk 0:00:08.9]} 61... Ke6 {[%clk 0:00:05.7]} 62. Kd4 {[%clk 0:00:07]} 62...
Rh2 {[%clk 0:00:05.6]} 63. Re3+ {[%clk 0:00:06.8]} 63... Kf6 {[%clk 0:00:04.6]}
64. Re4 {[%clk 0:00:07.1]} 64... Ra2 {[%clk 0:00:04.3]} 65. Re3 {[%clk
0:00:06.4]} 65... Rh2 {[%clk 0:00:04.2]} 66. Re4 {[%clk 0:00:05.6]} 66... Ra2
{[%clk 0:00:04]} 67. Rf4+ {[%clk 0:00:06.3]} 67... Ke6 {[%clk 0:00:03.9]} 68.
Re4+ {[%clk 0:00:06.9]} 68... Kd7 {[%clk 0:00:04.3]} 69. Rf4 {[%clk 0:00:05.4]}
69... f5 {[%clk 0:00:04.5]} 70. Ke5 {[%clk 0:00:04.7]} 70... Ke7 {[%clk
0:00:04]} 71. Rd4 {[%clk 0:00:03.2]} 71... Re2+ {[%clk 0:00:03.8]} 72. Kf4
{[%clk 0:00:03.1]} 72... Ra2 {[%clk 0:00:01.9]} 73. Rd6 {[%clk 0:00:03.7]} 73...
Kf7 {[%clk 0:00:02.4]} 74. Rxc6 {[%clk 0:00:03.9]} 74... Rxa3 {[%clk 0:00:03]}
75. Rb6 {[%clk 0:00:03.8]} 75... Ra4 {[%clk 0:00:03]} 76. c6 {[%clk 0:00:04.2]}
76... a5 {[%clk 0:00:03.1]} 77. c7 {[%clk 0:00:04.9]} 77... Rxb4+ {[%clk
0:00:03.4]} 78. Rxb4 {[%clk 0:00:04.2]} 78... Ke7 {[%clk 0:00:03.1]} 79. c8=Q
{[%clk 0:00:04.3]} 79... axb4 {[%clk 0:00:03.5]} 80. Qh8 {[%clk 0:00:05]} 80...
Kf7 {[%clk 0:00:03]} 81. Qxh6 {[%clk 0:00:05.7]} 81... Kf6 {[%clk 0:00:03.6]}
82. Qg5+ {[%clk 0:00:06.4]} 82... Kf7 {[%clk 0:00:04.4]} 83. h5 {[%clk
0:00:06.9]} 83... b3 {[%clk 0:00:05.3]} 84. hxg6+ {[%clk 0:00:07.2]} 84... Ke6
{[%clk 0:00:06.2]} 85. Qxf5+ {[%clk 0:00:07.8]} 85... Kd6 {[%clk 0:00:06.3]} 86.
Qb1 {[%clk 0:00:08.7]} 86... Kc5 {[%clk 0:00:07.2]} 87. Ke5 {[%clk 0:00:09]}
87... Kb4 {[%clk 0:00:07.7]} 88. f4 {[%clk 0:00:09.6]} 88... Kc3 {[%clk
0:00:08.6]} 89. f5 {[%clk 0:00:10.5]} 89... b2 {[%clk 0:00:09.4]} 90. f6 {[%clk
0:00:10.8]} 90... Kb3 {[%clk 0:00:10.3]} 91. f7 {[%clk 0:00:11.4]} 91... Kc3
{[%clk 0:00:11.2]} 92. g7 {[%clk 0:00:12]} 1-0

[Event "Early-Titled-Tuesday-Blitz-March-19-2024"]
[Site "Chess.com"]
[Date "2024.03.19"]
[Round "4"]
[White "GnowReopard"]
[Black "ArmanGhevondyanchess"]
[Result "0-1"]
[WhiteElo "2795"]
[BlackElo "2596"]
[TimeControl "180+1"]
[EndTime "8:42:26 PDT"]
[Termination "ArmanGhevondyanchess won on time"]

1. e4 {[%clk 0:03:00.9]} 1... c5 {[%clk 0:02:59]} 2. Ne2 {[%clk 0:03:00.4]} 2...
Nc6 {[%clk 0:02:59.4]} 3. Nbc3 {[%clk 0:02:58.4]} 3... g6 {[%clk 0:02:59.9]} 4.
d4 {[%clk 0:02:58]} 4... cxd4 {[%clk 0:03:00.8]} 5. Nxd4 {[%clk 0:02:58.5]} 5...
Bg7 {[%clk 0:03:01.5]} 6. Be3 {[%clk 0:02:58.9]} 6... Nf6 {[%clk 0:03:01.9]} 7.
Bc4 {[%clk 0:02:57.5]} 7... O-O {[%clk 0:03:02.4]} 8. Bb3 {[%clk 0:02:55.7]}
8... a5 {[%clk 0:03:02.8]} 9. O-O {[%clk 0:02:54]} 9... a4 {[%clk 0:03:03.1]}
10. Nxa4 {[%clk 0:02:54]} 10... Nxe4 {[%clk 0:03:02.5]} 11. Nb5 {[%clk 0:02:54]}
11... Ra6 {[%clk 0:03:02.9]} 12. c4 {[%clk 0:02:53.1]} 12... Na5 {[%clk
0:03:02.8]} 13. Bc2 {[%clk 0:02:52.1]} 13... Nd6 {[%clk 0:03:00.4]} 14. Nxd6
{[%clk 0:02:44.2]} 14... Rxd6 {[%clk 0:03:00.5]} 15. Qe2 {[%clk 0:02:44.7]}
15... Re6 {[%clk 0:02:46.8]} 16. Rad1 {[%clk 0:02:42.2]} 16... d6 {[%clk
0:02:46.4]} 17. Nc5 {[%clk 0:02:33.6]} 17... Re5 {[%clk 0:02:44.6]} 18. Nd3
{[%clk 0:02:33]} 18... Re6 {[%clk 0:02:36.7]} 19. b3 {[%clk 0:02:24.3]} 19...
Nc6 {[%clk 0:02:34]} 20. Nf4 {[%clk 0:02:21.4]} 20... Re5 {[%clk 0:02:34]} 21.
Qd2 {[%clk 0:02:21.1]} 21... Bg4 {[%clk 0:02:26.2]} 22. Rb1 {[%clk 0:02:07.4]}
22... Bf5 {[%clk 0:02:26.5]} 23. Bxf5 {[%clk 0:02:07]} 23... Rxf5 {[%clk
0:02:25.9]} 24. Nd5 {[%clk 0:02:07.3]} 24... e6 {[%clk 0:02:23.1]} 25. Nc3
{[%clk 0:02:01.4]} 25... d5 {[%clk 0:02:23.1]} 26. cxd5 {[%clk 0:01:59.4]} 26...
exd5 {[%clk 0:02:24]} 27. Bc5 {[%clk 0:01:21.8]} 27... Re8 {[%clk 0:02:21.9]}
28. Rbe1 {[%clk 0:01:21.4]} 28... d4 {[%clk 0:02:20.3]} 29. Bb6 {[%clk
0:01:07.7]} 29... Qd7 {[%clk 0:01:59]} 30. Ne4 {[%clk 0:01:07.3]} 30... Rfe5
{[%clk 0:01:54.7]} 31. Nc5 {[%clk 0:01:05.8]} 31... Qd5 {[%clk 0:01:51.9]} 32.
Nd3 {[%clk 0:01:04.4]} 32... Re4 {[%clk 0:01:41.8]} 33. Rxe4 {[%clk 0:01:02.3]}
33... Rxe4 {[%clk 0:01:41]} 34. Rc1 {[%clk 0:00:57.4]} 34... Bf6 {[%clk
0:01:37.2]} 35. Re1 {[%clk 0:00:44.3]} 35... Kg7 {[%clk 0:01:35.7]} 36. Rxe4
{[%clk 0:00:42.7]} 36... Qxe4 {[%clk 0:01:36.6]} 37. f3 {[%clk 0:00:25.7]} 37...
Qd5 {[%clk 0:01:36.2]} 38. Bc7 {[%clk 0:00:22.2]} 38... Ne5 {[%clk 0:01:30.1]}
39. Bxe5 {[%clk 0:00:21.7]} 39... Bxe5 {[%clk 0:01:31]} 40. Qe2 {[%clk
0:00:21.8]} 40... Bf6 {[%clk 0:01:30.7]} 41. Kf2 {[%clk 0:00:20.2]} 41... h5
{[%clk 0:01:30.5]} 42. Qe4 {[%clk 0:00:19.4]} 42... Qa5 {[%clk 0:01:28.6]} 43.
Qe2 {[%clk 0:00:15.1]} 43... h4 {[%clk 0:01:26.7]} 44. a4 {[%clk 0:00:11.1]}
44... Qc7 {[%clk 0:01:26.7]} 45. b4 {[%clk 0:00:10]} 45... Qxh2 {[%clk
0:01:26.4]} 46. Qe4 {[%clk 0:00:05.8]} 46... Qg3+ {[%clk 0:01:21.2]} 47. Kf1
{[%clk 0:00:06.2]} 47... h3 {[%clk 0:01:21.5]} 48. gxh3 {[%clk 0:00:06.9]} 48...
Qxh3+ {[%clk 0:01:21.7]} 49. Ke2 {[%clk 0:00:07.8]} 49... Qh2+ {[%clk
0:01:19.3]} 50. Kd1 {[%clk 0:00:07.7]} 50... Qa2 {[%clk 0:01:17.9]} 51. a5
{[%clk 0:00:06.4]} 51... Qb3+ {[%clk 0:01:15.3]} 52. Ke2 {[%clk 0:00:06.3]}
52... Qc2+ {[%clk 0:01:15.4]} 53. Kf1 {[%clk 0:00:06.8]} 53... Qd1+ {[%clk
0:01:09.2]} 54. Kg2 {[%clk 0:00:06.4]} 54... Qd2+ {[%clk 0:01:07.8]} 55. Kh3
{[%clk 0:00:06.7]} 55... Qd1 {[%clk 0:00:58.1]} 56. Kg2 {[%clk 0:00:04.3]} 56...
Qd2+ {[%clk 0:00:56.3]} 57. Kh3 {[%clk 0:00:04.5]} 57... Qg5 {[%clk 0:00:56.7]}
58. Qg4 {[%clk 0:00:01.6]} 58... Qb5 {[%clk 0:00:54.7]} 59. Qe4 {[%clk
0:00:01.6]} 59... b6 {[%clk 0:00:51]} 60. Kg2 {[%clk 0:00:01.6]} 60... bxa5
{[%clk 0:00:51.1]} 61. bxa5 {[%clk 0:00:02.5]} 61... Qxa5 {[%clk 0:00:52]} 62.
f4 {[%clk 0:00:01.7]} 62... Qh5 {[%clk 0:00:49.2]} 63. Kg3 {[%clk 0:00:01.4]}
63... Bh4+ {[%clk 0:00:48.3]} 64. Kg2 {[%clk 0:00:01.7]} 64... Qg4+ {[%clk
0:00:48.7]} 65. Kf1 {[%clk 0:00:02.2]} 65... Qh3+ {[%clk 0:00:45.2]} 66. Ke2
{[%clk 0:00:02.6]} 66... Qh2+ {[%clk 0:00:44.4]} 67. Kd1 {[%clk 0:00:03.1]}
67... Bf6 {[%clk 0:00:44.6]} 68. Kc1 {[%clk 0:00:02.9]} 68... Qa2 {[%clk
0:00:43.3]} 69. Kd1 {[%clk 0:00:03.2]} 69... Qc4 {[%clk 0:00:41.9]} 70. Ke1
{[%clk 0:00:03.6]} 70... Qc3+ {[%clk 0:00:41.8]} 71. Ke2 {[%clk 0:00:03.9]}
71... Qc2+ {[%clk 0:00:42]} 72. Kf3 {[%clk 0:00:04]} 72... Qd2 {[%clk 0:00:42]}
73. f5 {[%clk 0:00:04.1]} 73... g5 {[%clk 0:00:39.4]} 74. Kg4 {[%clk 0:00:04]}
74... Qd1+ {[%clk 0:00:37.7]} 75. Qf3 {[%clk 0:00:04.3]} 75... Qg1+ {[%clk
0:00:30.9]} 76. Kh3 {[%clk 0:00:04.7]} 76... Qe3 {[%clk 0:00:21.7]} 77. Kg2
{[%clk 0:00:03.8]} 77... Qd2+ {[%clk 0:00:19.1]} 78. Nf2 {[%clk 0:00:03.4]}
78... Be5 {[%clk 0:00:18]} 79. Kh3 {[%clk 0:00:03.6]} 79... Qf4 {[%clk
0:00:17.7]} 80. Kg2 {[%clk 0:00:03]} 80... Qxf3+ {[%clk 0:00:14.6]} 81. Kxf3
{[%clk 0:00:03.4]} 81... f6 {[%clk 0:00:15.5]} 82. Ke4 {[%clk 0:00:02.7]} 82...
Kh6 {[%clk 0:00:15.6]} 83. Ng4+ {[%clk 0:00:02.9]} 83... Kg7 {[%clk 0:00:14.2]}
84. Nf2 {[%clk 0:00:02.7]} 84... Kf7 {[%clk 0:00:14.8]} 85. Kd5 {[%clk
0:00:02.8]} 85... Ke7 {[%clk 0:00:14.8]} 86. Kc5 {[%clk 0:00:02.2]} 86... Kd7
{[%clk 0:00:15.2]} 87. Kd5 {[%clk 0:00:02.7]} 87... Kc7 {[%clk 0:00:13.6]} 88.
Ke4 {[%clk 0:00:02.7]} 88... Kd6 {[%clk 0:00:13.9]} 89. Nd3 {[%clk 0:00:02.7]}
89... g4 {[%clk 0:00:13.9]} 0-1

[Event "Early-Titled-Tuesday-Blitz-March-19-2024"]
[Site "Chess.com"]
[Date "2024.03.19"]
[Round "4"]
[White "SuperPower2011"]
[Black "Beca95"]
[Result "1/2-1/2"]
[WhiteElo "2776"]
[BlackElo "2981"]
[TimeControl "180+1"]
[EndTime "8:43:53 PDT"]
[Termination "Game drawn by stalemate"]

1. d4 {[%clk 0:03:00.9]} 1... Nf6 {[%clk 0:02:59.4]} 2. c4 {[%clk 0:03:01.2]}
2... c5 {[%clk 0:02:59.9]} 3. d5 {[%clk 0:03:01.1]} 3... e6 {[%clk 0:03:00.5]}
4. Nc3 {[%clk 0:03:00.9]} 4... exd5 {[%clk 0:03:01.1]} 5. cxd5 {[%clk
0:03:01.8]} 5... d6 {[%clk 0:03:01.6]} 6. e4 {[%clk 0:03:02.4]} 6... g6 {[%clk
0:03:01.4]} 7. f4 {[%clk 0:03:02]} 7... Bg7 {[%clk 0:03:01.1]} 8. Bb5+ {[%clk
0:03:02.6]} 8... Nfd7 {[%clk 0:03:01.2]} 9. a4 {[%clk 0:03:02.5]} 9... Na6
{[%clk 0:03:01.1]} 10. Nf3 {[%clk 0:03:01.9]} 10... Nb4 {[%clk 0:03:01.1]} 11.
O-O {[%clk 0:03:02.2]} 11... a6 {[%clk 0:03:01.1]} 12. Bxd7+ {[%clk 0:03:01.3]}
12... Bxd7 {[%clk 0:03:01.1]} 13. f5 {[%clk 0:03:01.9]} 13... O-O {[%clk
0:02:49.4]} 14. Bg5 {[%clk 0:02:54.3]} 14... f6 {[%clk 0:02:46.4]} 15. Bf4
{[%clk 0:02:54.1]} 15... Qe7 {[%clk 0:02:45.9]} 16. fxg6 {[%clk 0:02:46.3]}
16... hxg6 {[%clk 0:02:44.6]} 17. Nh4 {[%clk 0:02:46.6]} 17... Kh7 {[%clk
0:02:23.8]} 18. Qf3 {[%clk 0:02:46.4]} 18... Bh6 {[%clk 0:02:12.6]} 19. Bxh6
{[%clk 0:01:36.4]} 19... Kxh6 {[%clk 0:02:09.5]} 20. Qg3 {[%clk 0:01:37]} 20...
Rg8 {[%clk 0:01:53.3]} 21. Rf2 {[%clk 0:01:31.8]} 21... Raf8 {[%clk 0:01:48.8]}
22. Raf1 {[%clk 0:01:31.1]} 22... c4 {[%clk 0:01:45.3]} 23. Rf4 {[%clk
0:00:46.6]} 23... g5 {[%clk 0:01:24.4]} 24. Nf5+ {[%clk 0:00:39]} 24... Bxf5
{[%clk 0:01:24.5]} 25. Rxf5 {[%clk 0:00:39.9]} 25... Nd3 {[%clk 0:01:24.4]} 26.
Qf3 {[%clk 0:00:34.7]} 26... Kg7 {[%clk 0:01:20.1]} 27. h4 {[%clk 0:00:34.8]}
27... Ne5 {[%clk 0:01:14.2]} 28. Qg3 {[%clk 0:00:30.5]} 28... g4 {[%clk
0:01:10.9]} 29. Ne2 {[%clk 0:00:30.5]} 29... Rh8 {[%clk 0:01:00.3]} 30. Nf4
{[%clk 0:00:28.2]} 30... Rf7 {[%clk 0:01:00.3]} 31. Nh5+ {[%clk 0:00:21.2]}
31... Rxh5 {[%clk 0:00:52.3]} 32. Rxh5 {[%clk 0:00:22.1]} 32... b5 {[%clk
0:00:45]} 33. axb5 {[%clk 0:00:21.1]} 33... axb5 {[%clk 0:00:45.9]} 34. Rf4
{[%clk 0:00:21.2]} 34... Kg8 {[%clk 0:00:42.1]} 35. Rxg4+ {[%clk 0:00:17.5]}
35... Nxg4 {[%clk 0:00:41.7]} 36. Qxg4+ {[%clk 0:00:18.4]} 36... Rg7 {[%clk
0:00:41.2]} 37. Qc8+ {[%clk 0:00:18.5]} 37... Kf7 {[%clk 0:00:41.4]} 38. Qf5
{[%clk 0:00:11.2]} 38... Qe5 {[%clk 0:00:36.7]} 39. Qd7+ {[%clk 0:00:09.6]}
39... Qe7 {[%clk 0:00:36.7]} 40. Qxb5 {[%clk 0:00:09.9]} 40... Qxe4 {[%clk
0:00:35.7]} 41. Qd7+ {[%clk 0:00:09.4]} 41... Qe7 {[%clk 0:00:35.6]} 42. Qxe7+
{[%clk 0:00:04.6]} 42... Kxe7 {[%clk 0:00:36.5]} 43. Kf2 {[%clk 0:00:03.4]}
43... Kf7 {[%clk 0:00:32.9]} 44. Kf3 {[%clk 0:00:03.5]} 44... Kg6 {[%clk
0:00:33]} 45. Rh8 {[%clk 0:00:02.3]} 45... Rb7 {[%clk 0:00:30.6]} 46. Rc8 {[%clk
0:00:03]} 46... Rb3+ {[%clk 0:00:30.6]} 47. Kg4 {[%clk 0:00:02.5]} 47... Rxb2
{[%clk 0:00:30.5]} 48. g3 {[%clk 0:00:02.7]} 48... f5+ {[%clk 0:00:27.4]} 49.
Kh3 {[%clk 0:00:01.8]} 49... Rd2 {[%clk 0:00:26.8]} 50. Rxc4 {[%clk 0:00:01.1]}
50... Rxd5 {[%clk 0:00:26.8]} 51. Rf4 {[%clk 0:00:02]} 51... Rd2 {[%clk
0:00:25.9]} 52. Rf3 {[%clk 0:00:02.1]} 52... d5 {[%clk 0:00:25.8]} 53. h5+
{[%clk 0:00:01.9]} 53... Kg5 {[%clk 0:00:25.4]} 54. h6 {[%clk 0:00:02.5]} 54...
Rd1 {[%clk 0:00:24.5]} 55. Kh2 {[%clk 0:00:02.2]} 55... Rd2+ {[%clk 0:00:20.4]}
56. Kh3 {[%clk 0:00:02.5]} 56... Ra2 {[%clk 0:00:11.9]} 57. Rd3 {[%clk
0:00:02.7]} 57... Ra6 {[%clk 0:00:09.7]} 58. h7 {[%clk 0:00:02.3]} 58... Rh6+
{[%clk 0:00:09.8]} 59. Kg2 {[%clk 0:00:03]} 59... Rxh7 {[%clk 0:00:09.9]} 60.
Rxd5 {[%clk 0:00:03.7]} 60... Rb7 {[%clk 0:00:10]} 61. Rd4 {[%clk 0:00:03.9]}
61... Rb3 {[%clk 0:00:10]} 62. Rf4 {[%clk 0:00:03.7]} 62... Rc3 {[%clk
0:00:10.1]} 63. Kf2 {[%clk 0:00:04.3]} 63... Rc5 {[%clk 0:00:10]} 64. Kg2 {[%clk
0:00:04.8]} 64... Re5 {[%clk 0:00:10.3]} 65. Rf2 {[%clk 0:00:04.7]} 65... Re4
{[%clk 0:00:10.5]} 66. Kh3 {[%clk 0:00:04.9]} 66... Re3 {[%clk 0:00:10.2]} 67.
Rf4 {[%clk 0:00:04.8]} 67... Re4 {[%clk 0:00:10.1]} 68. Rf1 {[%clk 0:00:03.2]}
68... f4 {[%clk 0:00:09.4]} 69. gxf4+ {[%clk 0:00:03]} 69... Kf5 {[%clk
0:00:09.1]} 70. Kg3 {[%clk 0:00:03.1]} 70... Re3+ {[%clk 0:00:09]} 71. Rf3
{[%clk 0:00:03.8]} 71... Re4 {[%clk 0:00:06.2]} 72. Ra3 {[%clk 0:00:03.4]} 72...
Re6 {[%clk 0:00:05.9]} 73. Kf3 {[%clk 0:00:02.9]} 73... Kf6 {[%clk 0:00:06.2]}
74. Ra5 {[%clk 0:00:03.4]} 74... Rc6 {[%clk 0:00:06.4]} 75. Kg4 {[%clk
0:00:03.6]} 75... Kg6 {[%clk 0:00:06.2]} 76. Rg5+ {[%clk 0:00:03.7]} 76... Kf6
{[%clk 0:00:06.5]} 77. Rh5 {[%clk 0:00:04.1]} 77... Kg6 {[%clk 0:00:06]} 78. f5+
{[%clk 0:00:02.9]} 78... Kg7 {[%clk 0:00:06.1]} 79. Kg5 {[%clk 0:00:02.6]} 79...
Rb6 {[%clk 0:00:05.7]} 80. Rh2 {[%clk 0:00:01.7]} 80... Kg8 {[%clk 0:00:03.2]}
81. Rg2 {[%clk 0:00:02.2]} 81... Ra6 {[%clk 0:00:03.2]} 82. Rg4 {[%clk
0:00:02.5]} 82... Rb6 {[%clk 0:00:03.4]} 83. Rc4 {[%clk 0:00:03]} 83... Ra6
{[%clk 0:00:03.6]} 84. Rc7 {[%clk 0:00:03.8]} 84... Rb6 {[%clk 0:00:03.4]} 85.
Rd7 {[%clk 0:00:04.5]} 85... Ra6 {[%clk 0:00:03.5]} 86. Rd8+ {[%clk 0:00:04.9]}
86... Kf7 {[%clk 0:00:03.4]} 87. Rd7+ {[%clk 0:00:05.8]} 87... Kf8 {[%clk
0:00:03.6]} 88. Rd2 {[%clk 0:00:06.7]} 88... Kf7 {[%clk 0:00:03.6]} 89. Rh2
{[%clk 0:00:07.3]} 89... Kg7 {[%clk 0:00:03.7]} 90. Rh3 {[%clk 0:00:07.2]} 90...
Rb6 {[%clk 0:00:03.6]} 91. Rd3 {[%clk 0:00:07.2]} 91... Rc6 {[%clk 0:00:02.5]}
92. Rd7+ {[%clk 0:00:07.7]} 92... Kg8 {[%clk 0:00:02.9]} 93. Re7 {[%clk
0:00:08.2]} 93... Kf8 {[%clk 0:00:03]} 94. Rh7 {[%clk 0:00:07.7]} 94... Rb6
{[%clk 0:00:03.2]} 95. Rh5 {[%clk 0:00:06.4]} 95... Ra6 {[%clk 0:00:03.3]} 96.
Rh1 {[%clk 0:00:06.6]} 96... Rb6 {[%clk 0:00:03.5]} 97. Ra1 {[%clk 0:00:07]}
97... Rc6 {[%clk 0:00:03.4]} 98. Ra8+ {[%clk 0:00:07.6]} 98... Kf7 {[%clk
0:00:03.6]} 99. Ra7+ {[%clk 0:00:08.4]} 99... Kf8 {[%clk 0:00:04]} 100. Rh7
{[%clk 0:00:07.5]} 100... Kg8 {[%clk 0:00:04.2]} 101. Rb7 {[%clk 0:00:07.8]}
101... Kf8 {[%clk 0:00:04.4]} 102. Rb1 {[%clk 0:00:08.4]} 102... Kf7 {[%clk
0:00:04.6]} 103. Re1 {[%clk 0:00:08.9]} 103... Rb6 {[%clk 0:00:04.7]} 104. Rd1
{[%clk 0:00:09.3]} 104... Ra6 {[%clk 0:00:04.9]} 105. Rd7+ {[%clk 0:00:09.2]}
105... Kf8 {[%clk 0:00:05.5]} 106. Rd5 {[%clk 0:00:08.8]} 106... Kf7 {[%clk
0:00:05.4]} 107. Rb5 {[%clk 0:00:07.4]} 107... Rc6 {[%clk 0:00:05.1]} 108. Ra5
{[%clk 0:00:08.1]} 108... Kf8 {[%clk 0:00:05.1]} 109. Ra7 {[%clk 0:00:08.7]}
109... Kg8 {[%clk 0:00:04.9]} 110. Ra8+ {[%clk 0:00:08]} 110... Kf7 {[%clk
0:00:05]} 111. Rb8 {[%clk 0:00:06.3]} 111... Ra6 {[%clk 0:00:04.7]} 112. Rb5
{[%clk 0:00:06.4]} 112... Rc6 {[%clk 0:00:04.5]} 113. Ra5 {[%clk 0:00:07]}
113... Rb6 {[%clk 0:00:04.6]} 114. f6 {[%clk 0:00:06]} 114... Rb1 {[%clk
0:00:03.1]} 115. Ra7+ {[%clk 0:00:06.6]} 115... Kf8 {[%clk 0:00:03.3]} 116. Ra4
{[%clk 0:00:06.6]} 116... Rg1+ {[%clk 0:00:01.7]} 117. Kf5 {[%clk 0:00:07.4]}
117... Rf1+ {[%clk 0:00:01.9]} 118. Ke5 {[%clk 0:00:08.3]} 118... Re1+ {[%clk
0:00:02.2]} 119. Re4 {[%clk 0:00:09.2]} 119... Rxe4+ {[%clk 0:00:02.4]} 120.
Kxe4 {[%clk 0:00:10.1]} 120... Kf7 {[%clk 0:00:03.1]} 121. Kf5 {[%clk 0:00:11]}
121... Kf8 {[%clk 0:00:02.9]} 122. Ke6 {[%clk 0:00:11.6]} 122... Ke8 {[%clk
0:00:03.1]} 123. f7+ {[%clk 0:00:12.5]} 123... Kf8 {[%clk 0:00:03.2]} 124. Kf6
{[%clk 0:00:13.4]} 1/2-1/2

[Event "Early-Titled-Tuesday-Blitz-March-19-2024"]
[Site "Chess.com"]
[Date "2024.03.19"]
[Round "5"]
[White "ChessQueen"]
[Black "ajedrezsinlimites"]
[Result "1-0"]
[WhiteElo "2755"]
[BlackElo "2608"]
[TimeControl "180+1"]
[EndTime "8:51:01 PDT"]
[Termination "ChessQueen won by resignation"]

1. e4 {[%clk 0:03:00.9]} 1... c6 {[%clk 0:02:58.2]} 2. c4 {[%clk 0:02:59.8]}
2... d5 {[%clk 0:02:57.3]} 3. cxd5 {[%clk 0:03:00.2]} 3... cxd5 {[%clk
0:02:58.2]} 4. exd5 {[%clk 0:03:00.9]} 4... Qxd5 {[%clk 0:02:58.1]} 5. Nc3
{[%clk 0:02:58.3]} 5... Qd8 {[%clk 0:02:56.2]} 6. d4 {[%clk 0:02:57.4]} 6... Nf6
{[%clk 0:02:56.7]} 7. Nf3 {[%clk 0:02:57.6]} 7... e6 {[%clk 0:02:57.2]} 8. Bd3
{[%clk 0:02:57.9]} 8... Be7 {[%clk 0:02:57]} 9. O-O {[%clk 0:02:58.1]} 9... O-O
{[%clk 0:02:57.7]} 10. Bg5 {[%clk 0:02:53.4]} 10... b6 {[%clk 0:02:55.2]} 11.
Bxf6 {[%clk 0:02:50.3]} 11... Bxf6 {[%clk 0:02:54.3]} 12. Be4 {[%clk 0:02:50]}
12... Ba6 {[%clk 0:02:53.1]} 13. Bxa8 {[%clk 0:02:44.8]} 1-0